[Event "1st Chessable Sunway Formentera 2022"]
[Site "Formentera Punta Prima"]
[Date "2022.05.08"]
[Round "9.17"]
[White "Alsaqer, Meshal"]
[Black "Roig Roig, Marc"]
[Result "1/2-1/2"]
[ECO "A46"]
[WhiteElo "1744"]
[BlackElo "1895"]
[Annotator "NA COMBH"]
[PlyCount "66"]
[EventDate "2022.05.05"]
[EventType "swiss"]
[EventCountry "ESP"]
[SourceTitle "playchess.com"]
[Source "ChessBase"]
[SourceQuality "1"]
[TimeControl "40/5400+30:1800+30"]

1. d4 {[%emt 0:00:10]} e6 {[%emt 0:00:16]} 2. Nf3 {[%emt 0:00:37]} Nf6 {[%emt 0:00:56]} 3. Bg5 {[%emt 0:00:48]} Be7 {[%emt 0:00:14]} 4. e3 {[%emt 0:00:30]} b6 {[%emt 0:00:23]} 5. Be2 {[%emt 0:00:38]} Bb7 {[%emt 0:00:25]} 6. Nbd2 {[%emt 0:00:48]} O-O {[%emt 0:00:42]} 7. O-O {[%emt 0:00:48]} Ne4 {[%emt 0:02:22]} 8. Nxe4 {[%emt 0:02:16]} Bxe4 {[%emt 0:00:21]} 9. Bxe7 {[%emt 0:01:59]} Qxe7 {[%emt 0:00:05]} 10. c3 {[%emt 0:01:02]} f5 {[%emt 0:03:17]} 11. a4 {[%emt 0:04:13]} a5 {[%emt 0:08:27]} 12. Rc1 {[%emt 0:10:36]} d6 {[%emt 0:08:50]} 13. Nd2 {[%emt 0:04:13]} Bc6 {[%emt 0:01:15]} 14. Bf3 {[%emt 0:01:11]} Qd7 {[%emt 0:04:35]} 15. Bxc6 {[%emt 0:05:03]} Qxc6 {[%emt 0:02:46]} 16. Qf3 {[%emt 0:06:28]} Qxf3 {[%emt 0:00:49]} 17. Nxf3 {[%emt 0:00:33]} Nc6 {[%emt 0:02:18]} 18. Rfd1 {[%emt 0:00:52]} Rfe8 {[%emt 0:08:35]} 19. d5 {[%emt 0:01:45]} exd5 {[%emt 0:02:29]} 20. Rxd5 {[%emt 0:00:16]} g6 {[%emt 0:04:18]} 21. g3 {[%emt 0:04:35]} Re4 {[%emt 0:01:18]} 22. b3 {[%emt 0:01:47]} Ne7 {[%emt 0:01:51]} 23. Rd3 {[%emt 0:01:52]} Nc6 {[%emt 0:01:11]} 24. Kg2 {[%emt 0:03:01]} Ne5 {[%emt 0:01:21]} 25. Rd4 {[%emt 0:04:33]} Nxf3 {[%emt 0:00:34]} 26. Kxf3 {[%emt 0:00:13]} Rae8 {[%emt 0:02:38]} 27. Rcd1 {[%emt 0:01:18]} R8e5 {[%emt 0:00:31]} 28. h3 {[%emt 0:06:04]} b5 {[%emt 0:03:51]} 29. g4 {[%emt 0:00:08]} bxa4 {[%emt 0:06:14]} 30. bxa4 {[%emt 0:02:26]} Rc5 {[%emt 0:04:01]} 31. gxf5 {[%emt 0:02:37]} Rxd4 {[%emt 0:00:44]} 32. cxd4 {[%emt 0:03:04]} Rxf5+ {[%emt 0:00:16]} 33. Kg3 {[%emt 0:00:20]} Rg5+ {[%emt 0:01:23]} 1/2-1/2

[Event "1st Chessable Sunway Formentera 2022"]
[Site "Formentera Punta Prima"]
[Date "2022.05.08"]
[Round "10.1"]
[White "Gukesh D"]
[Black "Martirosyan, Haik M."]
[Result "1/2-1/2"]
[ECO "D36"]
[WhiteElo "2659"]
[BlackElo "2652"]
[Annotator "TA"]
[PlyCount "49"]
[EventDate "2022.05.05"]
[EventType "swiss"]
[EventCountry "ESP"]
[SourceTitle "playchess.com"]
[Source "ChessBase"]
[SourceQuality "1"]
[TimeControl "40/5400+30:1800+30"]

{[%evp 22,49,33,32,30,29,37,37,35,33,28,25,28,16,18,18,20,18,22,4,12,12,0,0,10,8,18,6,20,-8]} 1. d4 {[%emt 0:00:56]} Nf6 {[%emt 0:00:09]} 2. c4 {[%emt 0:00:58]} e6 {[%emt 0:00:07]} 3. Nf3 {[%emt 0:01:31]} d5 {[%emt 0:00:09]} 4. Nc3 {[%emt 0:00:40]} Nbd7 {[%emt 0:00:09]} 5. cxd5 {[%emt 0:00:44]} exd5 {[%emt 0:00:07]} 6. Bg5 {[%emt 0:00:03]} c6 {[%emt 0:00:11]} 7. Qc2 {[%emt 0:00:06]} Be7 {[%emt 0:00:27]} 8. e3 {[%emt 0:00:08]} h6 {[%emt 0:00:17]} 9. Bh4 {[%emt 0:00:07]} O-O {[%emt 0:00:14]} 10. Bd3 {[%emt 0:01:04]} Re8 {[%emt 0:00:08]} 11. O-O {[%emt 0:00:58]} Ne4 {[%emt 0:00:36]} 12. Bxe4 {[%emt 0:00:22]} ({Don't go for} 12. Nxe4 $2 dxe4 13. Bxe4 (13. Bxe7 $2 Qxe7 14. Bxe4 Qxe4 $19) 13... Bxh4 $19) 12... Bxh4 {[%emt 0:00:09] D36: Queen's Gambit Declined: Exchange Variation: Main line (5 Bg5 c6 6 Qc2).} 13. Bh7+ {[%emt 0:00:04]} Kf8 {[%emt 0:00:27]} 14. Nxh4 {[%emt 0:00:23]} Qxh4 {[%emt 0:00:08] White is slightly better.} 15. Bd3 {[%emt 0:00:03]} Qe7 {[%emt 0:01:21] [#]} 16. Rfe1 $146 {[%emt 0:00:56]} ({Predecessor:} 16. a3 Nb6 17. Ne2 Bg4 18. Nf4 Nc8 19. Rfe1 g5 20. Ne2 Bxe2 21. Rxe2 Qd8 22. f3 {½-½ (52) Boreika,V (2211)-Viskontas,J (2185) ICCF email 2020}) 16... Nf6 {[%emt 0:01:48]} 17. f3 {[%emt 0:00:06]} Be6 {[%emt 0:02:03] The position is equal.} 18. Rad1 {[%emt 0:02:35]} b6 {[%emt 0:17:42]} 19. Qf2 {[%emt 0:05:01]} c5 {[%emt 0:01:43]} 20. Bb1 {[%emt 0:00:19]} Rad8 {[%emt 0:06:08]} 21. Ne2 {[%emt 0:07:28]} Bc8 {[%emt 0:03:12]} 22. Nf4 {[%emt 0:02:13]} Bb7 {[%emt 0:07:08]} 23. h4 {[%emt 0:04:23][%cal Bh2h4,Bh4h5][%mdl 32]} Kg8 {[%emt 0:02:33]} 24. g4 {[%emt 0:05:08]} g6 {[%emt 0:01:41]} 25. h5 {[%emt 0:05:02] Weighted Error Value: White=0.03 (flawless) /Black=0.01 (flawless)} 1/2-1/2

[Event "1st Chessable Sunway Formentera 2022"]
[Site "Formentera Punta Prima"]
[Date "2022.05.08"]
[Round "10.2"]
[White "Santos Latasa, Jaime"]
[Black "Sargsyan, Shant"]
[Result "1/2-1/2"]
[ECO "C89"]
[WhiteElo "2672"]
[BlackElo "2641"]
[Annotator "TA"]
[PlyCount "57"]
[EventDate "2022.05.05"]
[EventType "swiss"]
[EventCountry "ESP"]
[SourceTitle "playchess.com"]
[Source "ChessBase"]
[SourceQuality "1"]
[TimeControl "40/5400+30:1800+30"]

{[%evp 15,57,27,56,39,45,13,1,0,11,0,0,0,0,0,0,0,0,0,0,0,0,-22,-15,-4,-9,-57,0,0,0,0,0,-11,0,0,0,0,0,0,0,0,0,0,0,0]} 1. e4 {[%emt 0:00:47]} e5 {[%emt 0:02:07]} 2. Nf3 {[%emt 0:00:20]} Nc6 {[%emt 0:00:07]} 3. Bb5 {[%emt 0:00:05][%cal Bf1b5,Bb5a4,Ba4b3][%mdl 32]} a6 {[%emt 0:00:10]} 4. Ba4 {[%emt 0:00:06]} Nf6 {[%emt 0:00:05]} 5. O-O {[%emt 0:00:05]} Be7 {[%emt 0:00:17]} 6. Re1 {[%emt 0:00:07]} b5 {[%emt 0:00:07]} 7. Bb3 {[%emt 0:00:06]} O-O {[%emt 0:00:32]} 8. c3 {[%emt 0:00:05]} Na5 {[%emt 0:00:42]} 9. Bc2 {[%emt 0:01:20] C89: Closed Ruy Lopez: Marshall Attack.} d5 {[%emt 0:00:10]} 10. d4 {[%emt 0:00:43]} dxe4 {[%emt 0:00:31]} 11. Nxe5 {[%emt 0:00:06]} c5 $1 {[%emt 0:00:31] [#] Against b4} 12. Nd2 $146 {[%emt 0:01:00][%cal Bb1d2,Bd2e4,Be4c3][%mdl 32]} ({Predecessor:} 12. Be3 Bb7 13. Nd2 Rc8 14. h3 Re8 15. Ng4 Nd5 16. Bxe4 Nxe3 17. Nxe3 cxd4 18. cxd4 Bxe4 19. Nxe4 {0-1 (51) Tari,A (2642)-Carlsen,M (2855) Stavanger 2021}) 12... cxd4 {[%emt 0:05:37] [#] Strongly threatening ...d3.} 13. Nxe4 {[%emt 0:00:24] And now Qd3 would win.} dxc3 {[%emt 0:04:37]} 14. Nxc3 {[%emt 0:00:43]} (14. Qe2 {seems wilder.} Bb7 15. Nxc3 b4 16. Na4) 14... Qxd1 {[%emt 0:02:14]} 15. Bxd1 {[%emt 0:02:42]} Be6 {[%emt 0:02:01]} 16. Bf3 {[%emt 0:01:21]} Rac8 {[%emt 0:00:44]} 17. Bg5 {[%emt 0:00:43]} Rfe8 {[%emt 0:08:07]} 18. a3 {[%emt 0:03:32]} h6 {[%emt 0:08:59]} 19. Bf4 {[%emt 0:05:45]} Bf8 {[%emt 0:05:12]} 20. Nd3 {[%emt 0:03:04]} (20. h3 $11) 20... Bf5 {[%emt 0:04:35]} ({Black should try} 20... Nc4 $15 21. Be5 Bf5 22. Bxf6 Bxd3 23. Rxe8 Rxe8) 21. Nb4 $11 {[%emt 0:05:13] The position is equal.} Nb3 {[%emt 0:00:39]} 22. Rxe8 {[%emt 0:00:41]} Rxe8 {[%emt 0:00:11]} 23. Rf1 {[%emt 0:00:07]} Bxb4 {[%emt 0:06:48]} 24. axb4 {[%emt 0:00:26]} Bd3 {[%emt 0:00:08]} 25. Rd1 {[%emt 0:00:08]} Bc2 {[%emt 0:00:16]} 26. Rf1 {[%emt 0:00:07]} Bd3 {[%emt 0:01:37]} 27. Rd1 {[%emt 0:00:27]} Bc2 {[%emt 0:00:09]} 28. Rf1 {[%emt 0:00:04]} Bd3 {[%emt 0:00:04]} 29. Rd1 {[%emt 0:00:05] Weighted Error Value: White=0.07 (flawless) /Black=0.04 (flawless)} 1/2-1/2

[Event "1st Chessable Sunway Formentera 2022"]
[Site "Formentera Punta Prima"]
[Date "2022.05.08"]
[Round "10.3"]
[White "Soham Das"]
[Black "Santos Ruiz, Miguel"]
[Result "1-0"]
[ECO "B22"]
[WhiteElo "2266"]
[BlackElo "2586"]
[Annotator "TA"]
[PlyCount "61"]
[EventDate "2022.05.05"]
[EventType "swiss"]
[EventCountry "ESP"]
[SourceTitle "playchess.com"]
[Source "ChessBase"]
[SourceQuality "1"]
[TimeControl "40/5400+30:1800+30"]

{[%evp 13,61,14,11,10,10,15,20,8,8,12,17,5,7,8,10,8,8,0,10,0,8,6,6,6,13,11,13,21,126,123,166,129,129,137,146,143,147,151,140,118,450,260,333,333,331,318,29995,29996,29996,29996]} 1. e4 {[%emt 0:00:08][%cal Be2e4,Be4e5][%mdl 32]} c5 {[%emt 0:01:33]} 2. c3 {[%emt 0:01:11]} Nf6 {[%emt 0:00:31]} 3. e5 {[%emt 0:00:04]} Nd5 {[%emt 0:00:03]} 4. Nf3 {[%emt 0:00:02]} e6 {[%emt 0:01:44]} 5. d4 {[%emt 0:00:32]} cxd4 {[%emt 0:00:05]} 6. cxd4 {[%emt 0:00:10]} d6 {[%emt 0:02:30]} 7. Bc4 {[%emt 0:06:08]} Be7 {[%emt 0:02:01]} 8. O-O {[%emt 0:01:35] B22: Sicilian: 2 c3.} O-O {[%emt 0:01:26]} 9. Qe2 {[%emt 0:03:11]} b6 {[%emt 0:03:21]} 10. Rd1 {[%emt 0:19:49] The position is equal.} Bb7 {[%emt 0:17:39]} 11. Bxd5 {[%emt 0:05:29]} exd5 {[%emt 0:04:00]} 12. Nc3 {[%emt 0:00:36]} Na6 {[%emt 0:00:44]} 13. Nb5 {[%emt 0:00:04][%cal Oc1g5]} Nc7 {[%emt 0:08:04]} 14. Nxc7 {[%emt 0:03:18]} Qxc7 {[%emt 0:02:02] [#]} 15. Bf4 $146 {[%emt 0:01:10]} ({Predecessor:} 15. Bg5 Bxg5 16. Nxg5 dxe5 17. dxe5 Rae8 18. Qd3 g6 19. Qh3 h5 20. e6 f6 21. Nf3 {1-0 (39) Giri,A (2773)-Erigaisi,A (2675) Chess.com INT 2022}) 15... Qd7 {[%emt 0:02:03]} 16. Rac1 {[%emt 0:04:59]} Rac8 {[%emt 0:01:02]} 17. h3 {[%emt 0:02:14]} dxe5 {[%emt 0:05:55]} 18. dxe5 {[%emt 0:01:29]} Qa4 {[%emt 0:06:40]} 19. Nd4 {[%emt 0:02:15][%cal Od4f5] Black must now prevent Nf5!} Rxc1 {[%emt 0:04:03]} (19... Qxa2 $2 20. Nf5 Bd8 21. Qg4 $18) 20. Bxc1 {[%emt 0:00:07][%cal Bf4c1,Bc1g5,Bg5f6][%mdl 32]} Ba6 {[%emt 0:04:49]} (20... Qxa2 $2 21. Nf5 Bd8 22. Qg4 $18) (20... Bc5 $11 {remains equal.}) 21. Qg4 $16 {[%emt 0:01:25] Strongly threatening Bh6.} Rd8 {[%emt 0:05:22]} 22. b3 {[%emt 0:15:48]} ({Resist} 22. Nf5 $6 Qxg4 23. Nxe7+ Kf8 24. hxg4 Kxe7 $14) 22... Qe8 {[%emt 0:02:43]} 23. Nf5 {[%emt 0:00:47][%csl Gf5][%cal Rg4g7]} Bf8 {[%emt 0:00:41]} 24. Bg5 $40 {[%emt 0:00:41][%mdl 128] Black is in trouble.} Ra8 {[%emt 0:01:00]} 25. Bf6 {[%emt 0:00:56][%cal Rf6g7] White is much more active.} g6 {[%emt 0:10:03] Threatens to win with ...Bc8.} 26. Qg5 {[%emt 0:00:36]} h5 $2 {[%emt 0:00:05][%mdl 8192] A mistake that costs the game.} (26... Bc8 $16 {is more resistant.}) 27. Rd4 {[%emt 0:10:08]} (27. g4 $142 Kh7 {[#]} 28. gxh5 $1 gxf5 29. Qxf5+ Kh6 30. Bg5+ Kg7 31. h6+ Kg8 32. h7+ Kh8 33. Bf6+ Bg7 34. Bxg7+ Kxg7 35. Qf6+ Kxh7 36. Rd4 Qg8+ 37. Rg4 Qxg4+ 38. hxg4) 27... Qe6 $18 {[%emt 0:01:51] [#]} 28. Rh4 $1 {[%emt 0:02:57][%cal Bd4h4,Bh4h5,Bh5h8][%mdl 32] Rxh5! would kill now.} Qxf5 {[%emt 0:01:17]} 29. Rxh5 {[%emt 0:00:43][%csl Gf6][%cal Rh5h8] Chess con chili.} Qb1+ $2 {[%emt 0:00:27]} (29... Bg7 $18 30. Qxf5 gxf5) 30. Kh2 {[%emt 0:00:05][%csl Gf6][%cal Rh5h8]} Bg7 {[%emt 0:00:02] [#]} 31. Rh8+ $3 {[%emt 0:01:59][%mdl 512] Weighted Error Value: White=0.11 (very precise) /Black=0.42} 1-0

[Event "1st Chessable Sunway Formentera 2022"]
[Site "Formentera Punta Prima"]
[Date "2022.05.08"]
[Round "10.4"]
[White "Cuenca Jimenez, Jose Fernando"]
[Black "Song, Julien"]
[Result "1/2-1/2"]
[ECO "D50"]
[WhiteElo "2551"]
[BlackElo "2388"]
[Annotator "TA"]
[PlyCount "71"]
[EventDate "2022.05.05"]
[EventType "swiss"]
[EventCountry "ESP"]
[SourceTitle "playchess.com"]
[Source "ChessBase"]
[SourceQuality "1"]
[TimeControl "40/5400+30:1800+30"]

{[%evp 14,71,20,13,14,10,14,19,11,17,21,0,0,1,0,0,0,0,0,5,0,0,6,0,6,6,9,0,0,0,0,0,0,0,0,0,0,0,0,0,0,0,0,-6,0,0,0,0,0,0,0,0,0,0,0,0,0,0,0,0]} 1. d4 {[%emt 0:00:02]} d5 {[%emt 0:00:38]} 2. c4 {[%emt 0:00:05]} e6 {[%emt 0:00:27]} 3. Nf3 {[%emt 0:00:08]} Nf6 {[%emt 0:00:37]} 4. Nc3 {[%emt 0:00:04]} c5 {[%emt 0:00:56]} 5. cxd5 {[%emt 0:00:43]} cxd4 {[%emt 0:01:08]} 6. Qxd4 {[%emt 0:01:20]} exd5 {[%emt 0:00:40]} 7. Bg5 {[%emt 0:01:11]} Be7 {[%emt 0:01:12]} 8. e3 {[%emt 0:00:38] The position is equal.} O-O {[%emt 0:00:50] D50: Queen's Gambit Declined: Dutch-Peruvian Gambit.} 9. Qa4 {[%emt 0:03:06]} h6 {[%emt 0:04:31]} 10. Bh4 {[%emt 0:00:17]} Qb6 {[%emt 0:04:04]} 11. Qb5 {[%emt 0:02:17]} Be6 {[%emt 0:06:06]} 12. Be2 {[%emt 0:06:47]} Nc6 {[%emt 0:19:00]} 13. O-O {[%emt 0:20:21]} Qxb5 {[%emt 0:07:19]} 14. Nxb5 {[%emt 0:25:52]} g5 {[%emt 0:01:33]} 15. Bg3 {[%emt 0:00:09]} Ne4 {[%emt 0:00:34]} 16. Nfd4 {[%emt 0:03:29]} Nxd4 {[%emt 0:05:40]} 17. Nxd4 {[%emt 0:00:18]} Nxg3 {[%emt 0:00:45]} 18. hxg3 {[%emt 0:00:15]} Bf6 {[%emt 0:02:01]} 19. Rfc1 {[%emt 0:06:09]} Rfc8 {[%emt 0:03:29] Against Rc7} 20. Bd3 {[%emt 0:00:58]} Rxc1+ {[%emt 0:12:09]} 21. Rxc1 {[%emt 0:00:04]} Rc8 {[%emt 0:00:08]} 22. Rd1 {[%emt 0:00:41] [#]} Kg7 $146 {[%emt 0:09:02]} ({Predecessor:} 22... Bxd4 23. exd4 Kf8 24. f3 Ke7 25. Kf2 h5 26. Rh1 Rh8 27. Ke3 Kf6 {½-½ (95) Radjabov,T (2765)-So,W (2770) chess24.com INT 2020}) 23. Kf1 {[%emt 0:02:06]} Bxd4 {[%emt 0:12:07]} 24. exd4 $11 {[%emt 0:00:10][%mdl 4096] Endgame KRB-KRB} Bg4 {[%emt 0:00:05]} 25. f3 {[%emt 0:05:59]} Bh5 {[%emt 0:00:12]} 26. Ke2 {[%emt 0:00:48]} Bg6 {[%emt 0:00:14]} 27. Bxg6 {[%emt 0:02:17]} Kxg6 {[%emt 0:00:07] KR-KR} 28. Kd3 {[%emt 0:00:13]} f6 {[%emt 0:00:45]} 29. Re1 {[%emt 0:08:12]} Kf7 {[%emt 0:00:16]} 30. g4 {[%emt 0:00:04]} Rc6 {[%emt 0:01:31]} 31. Re2 {[%emt 0:08:29]} Rc1 {[%emt 0:00:35]} 32. Rc2 {[%emt 0:00:09]} Rxc2 {[%emt 0:00:35]} 33. Kxc2 {[%emt 0:00:03]} Ke6 {[%emt 0:00:18]} 34. Kb3 {[%emt 0:00:34]} b6 {[%emt 0:02:01]} 35. Kb4 {[%emt 0:02:38] [#] aiming for Kb5.} a6 {[%emt 0:00:09]} 36. a4 {[%emt 0:01:13] A balanced but interesting game.  Weighted Error Value: White=0.01 (flawless) /Black=0.01 (flawless)} 1/2-1/2

[Event "1st Chessable Sunway Formentera 2022"]
[Site "Formentera Punta Prima"]
[Date "2022.05.08"]
[Round "10.6"]
[White "Narciso Dublan, Marc"]
[Black "Romanishin, Oleg M"]
[Result "0-1"]
[WhiteElo "2464"]
[BlackElo "2400"]
[Annotator "TA"]
[PlyCount "23"]
[EventDate "2022.05.05"]
[EventType "swiss"]
[EventCountry "ESP"]
[SourceTitle "playchess.com"]
[Source "ChessBase"]
[SourceQuality "1"]
[TimeControl "40/5400+30:1800+30"]

{[%evp 9,9,24]} 1. d4 {[%emt 0:00:05]} Nf6 {[%emt 0:01:13]} 2. Bg5 {[%emt 0:00:14]} d5 {[%emt 0:00:33]} 3. e3 {[%emt 0:00:16]} Nbd7 {[%emt 0:00:31]} 4. Nf3 {[%emt 0:00:17]} c6 {[%emt 0:07:17]} 5. Nbd2 {[%emt 0:06:37] [#] A rather calm draw.} {Predecessor:} g6 $146 6. Be2 {D03: 1 d4 d5 2 Nf3 Nf6 3 Bg5, including Torre Attack with early ...d5.} Bg7 7. O-O O-O 8. c4 e6 9. b4 a5 10. b5 cxb5 11. cxd5 exd5 12. Bxb5 {1-0 (64) Piorun,K (2611)-Murzin,V (2442) Moscow 2019} 0-1

[Event "1st Chessable Sunway Formentera 2022"]
[Site "Formentera Punta Prima"]
[Date "2022.05.08"]
[Round "10.7"]
[White "Yankelevich, Lev"]
[Black "Eugene, Floryan"]
[Result "1/2-1/2"]
[ECO "D31"]
[WhiteElo "2473"]
[BlackElo "2370"]
[Annotator "TA"]
[PlyCount "99"]
[EventDate "2022.05.05"]
[EventType "swiss"]
[EventCountry "ESP"]
[SourceTitle "playchess.com"]
[Source "ChessBase"]
[SourceQuality "1"]
[TimeControl "40/5400+30:1800+30"]

{[%evp 9,99,18,24,26,45,14,19,0,7,0,6,-3,0,-7,0,0,46,53,63,55,67,35,18,0,0,0,0,0,0,-9,17,19,23,27,27,27,25,16,43,35,37,29,35,29,29,31,28,30,21,0,0,0,0,6,2,1,2,2,3,0,2,0,3,5,5,0,0,0,1,2,4,3,3,0,3,3,4,2,6,6,8,6,18,21,55,55,55,3,3,-2,-2,-2]} 1. d4 {[%emt 0:00:02]} d5 {[%emt 0:00:47]} 2. c4 {[%emt 0:00:10]} e6 {[%emt 0:00:05]} 3. Nc3 {[%emt 0:00:07]} a6 {[%emt 0:03:08]} 4. cxd5 {[%emt 0:00:07]} exd5 {[%emt 0:00:04]} 5. Bf4 {[%emt 0:00:02]} Nf6 {[%emt 0:00:15]} 6. e3 {[%emt 0:00:05] D31: Queen's Gambit Declined: Semi-Slav without ...Nf6 (+ Marshall Gambit and Noteboom) and Exchange Variation lines without ...Nf6.} c5 {[%emt 0:00:33]} 7. Bg5 {[%emt 0:07:01]} Be6 {[%emt 0:12:33] [#]} 8. Nge2 $146 {[%emt 0:04:59]} ({Predecessor:} 8. Nf3 Nc6 9. a4 Be7 10. Be2 O-O 11. O-O Qb6 12. Qd2 cxd4 13. Nxd4 Nxd4 14. exd4 {1-0 (31) Fistoul,B (1864)-Walker,A (1783) Germany 2016}) 8... Nc6 {[%emt 0:08:32]} 9. g3 {[%emt 0:05:03]} h6 {[%emt 0:05:23]} 10. Bxf6 {[%emt 0:00:21]} Qxf6 {[%emt 0:00:19]} 11. Bg2 {[%emt 0:01:58] Against Qf3} cxd4 {[%emt 0:17:03]} 12. exd4 {[%emt 0:00:08]} Bb4 {[%emt 0:01:40]} (12... O-O-O $11) 13. O-O $14 {[%emt 0:00:06]} Rd8 {[%emt 0:09:53]} 14. Nf4 {[%emt 0:02:27][%cal Rf4d5]} Qxd4 {[%emt 0:06:02]} 15. Qxd4 {[%emt 0:15:27]} (15. Ncxd5 $5 {[%cal Rd1d4]} Qxd1 16. Rfxd1 $14) 15... Nxd4 {[%emt 0:00:05]} 16. Ncxd5 {[%emt 0:00:03]} Ne2+ {[%emt 0:02:04]} 17. Kh1 {[%emt 0:02:34]} Nxf4 {[%emt 0:00:35]} 18. Nxf4 {[%emt 0:00:01]} Bc8 {[%emt 0:01:40]} 19. a3 {[%emt 0:00:33]} Bd2 {[%emt 0:00:54]} 20. Nd5 {[%emt 0:01:25]} Bh3 {[%emt 0:03:46]} 21. Bxh3 {[%emt 0:00:37]} Rxd5 {[%emt 0:00:36]} 22. Bg2 {[%emt 0:00:49]} Rb5 {[%emt 0:03:39]} 23. b4 {[%emt 0:01:37] [#] Black must now prevent Rad1.} O-O {[%emt 0:01:08]} 24. Ra2 {[%emt 0:00:28]} Bg5 {[%emt 0:00:45]} 25. h4 {[%emt 0:00:28]} Bf6 {[%emt 0:01:11]} 26. Rd1 {[%emt 0:00:03]} Re8 {[%emt 0:05:42]} 27. Rd7 {[%emt 0:01:28]} Re7 {[%emt 0:00:13]} 28. Rxe7 {[%emt 0:00:47]} Bxe7 $11 {[%emt 0:00:04][%mdl 4096] Endgame KRB-KRB} 29. Rd2 {[%emt 0:01:56]} a5 {[%emt 0:01:59]} 30. Rd7 {[%emt 0:01:10]} Kf8 {[%emt 0:00:59]} 31. Bf1 {[%emt 0:02:19]} Rb6 {[%emt 0:03:40]} 32. bxa5 {[%emt 0:00:07]} Rb1 {[%emt 0:01:20]} 33. Kg2 {[%emt 0:00:02]} Bxa3 {[%emt 0:00:31]} ({But not} 33... Ke8 34. Rd5 $16) 34. Bc4 {[%emt 0:05:31]} Be7 $1 {[%emt 0:00:06]} 35. Rc7 {[%emt 0:00:38] [#] aiming for Rc8+.} g5 {[%emt 0:01:06]} 36. Rc8+ {[%emt 0:07:34]} Kg7 {[%emt 0:00:04]} 37. Rb8 {[%emt 0:00:02]} Bd6 {[%emt 0:01:25]} 38. Rd8 {[%emt 0:00:19]} Be7 {[%emt 0:00:08]} 39. Rd7 {[%emt 0:00:46]} Kf8 {[%emt 0:00:08]} 40. h5 {[%emt 0:00:00]} Rb4 {[%emt 0:00:00]} 41. Bd3 {[%emt 0:06:09]} Ra4 {[%emt 0:02:19]} 42. Rd5 {[%emt 0:00:25]} Bf6 {[%emt 0:00:25]} 43. Bc2 {[%emt 0:05:52]} Ra3 {[%emt 0:03:24]} 44. Be4 {[%emt 0:05:27]} Be7 {[%emt 0:10:06]} 45. Kh3 {[%emt 0:07:56]} Bb4 {[%emt 0:06:28]} 46. Rd8+ {[%emt 0:00:05]} Kg7 {[%emt 0:02:09]} 47. Rd7 {[%emt 0:00:13]} Rxa5 {[%emt 0:00:11]} 48. Rxb7 {[%emt 0:03:13]} (48. Bg6 $1 $14) 48... Bc5 {[%emt 0:00:21]} 49. Bg6 {[%emt 0:00:27]} Ra7 {[%emt 0:00:08]} 50. Rxa7 {[%emt 0:00:04] Weighted Error Value: White=0.06 (flawless) /Black=0.04 (flawless)} 1/2-1/2

[Event "1st Chessable Sunway Formentera 2022"]
[Site "Formentera Punta Prima"]
[Date "2022.05.08"]
[Round "10.8"]
[White "Neiman, Emmanuel"]
[Black "Batsiashvili, Nino"]
[Result "0-1"]
[ECO "D90"]
[WhiteElo "2248"]
[BlackElo "2463"]
[Annotator "TA"]
[PlyCount "62"]
[EventDate "2022.05.05"]
[EventType "swiss"]
[EventCountry "ESP"]
[SourceTitle "playchess.com"]
[Source "ChessBase"]
[SourceQuality "1"]
[TimeControl "40/5400+30:1800+30"]

{[%evp 21,62,26,48,-35,-6,-50,0,0,2,6,0,0,0,0,0,-141,-50,-220,-46,-115,-125,-128,-110,-237,-226,-234,-235,-232,-232,-229,-226,-229,-195,-837,-275,-282,-288,-280,-281,-273,-219,-364,-264]} 1. d4 {[%emt 0:00:04]} Nf6 {[%emt 0:00:08]} 2. Nf3 {[%emt 0:00:20]} d5 {[%emt 0:00:06]} 3. e3 {[%emt 0:00:07]} g6 {[%emt 0:01:47]} 4. c4 {[%emt 0:00:08]} Bg7 {[%emt 0:00:04]} 5. cxd5 {[%emt 0:00:36]} O-O {[%emt 0:01:45]} 6. Be2 {[%emt 0:00:51]} Nxd5 {[%emt 0:00:32]} 7. e4 {[%emt 0:00:32]} Nb6 {[%emt 0:02:33]} 8. Nc3 {[%emt 0:03:19]} Bg4 {[%emt 0:06:00]} 9. Be3 {[%emt 0:00:19]} Nc6 {[%emt 0:06:20][%cal Bb8c6,Bc6e5,Be5f3][%mdl 32]} 10. d5 {[%emt 0:00:31]} Bxf3 {[%emt 0:00:23]} 11. gxf3 {[%emt 0:06:49]} Ne5 {[%emt 0:04:33]} 12. Bd4 {[%emt 0:05:54] D90: Grünfeld: 4 Nf3 Bg7 sidelines.} (12. Qb3 $1 $14) 12... c5 $15 {[%emt 0:18:24]} 13. Bxc5 {[%emt 0:01:15]} Nbc4 {[%emt 0:00:23] [#]} (13... Nec4 $1 $15 14. Qb3 Nxb2) 14. Rb1 $146 {[%emt 0:19:32] Bd4 is the strong threat. The position is equal.} ({Predecessor:} 14. Qb3 Nxb2 15. Rc1 Rc8 16. Bb6 Qxb6 17. Qxb6 axb6 18. Kd2 Bh6+ 19. Kc2 Bxc1 20. Rxc1 {0-1 (37) Hidalgo Duque,C (1857)-Robles Garcia,C (1882) Toledo 2003}) 14... Qc8 {[%emt 0:09:23]} 15. Bd4 {[%emt 0:01:02] Threatens to win with f4.} Qh3 {[%emt 0:00:07]} 16. f4 {[%emt 0:09:57]} Nf3+ {[%emt 0:01:59]} 17. Bxf3 {[%emt 0:00:08]} Bxd4 {[%emt 0:00:05]} 18. Ke2 {[%emt 0:48:06] [#]} (18. Qxd4 $11 Qxf3 19. Rg1) 18... Bg7 {[%emt 0:04:32] 0x0.002c8c3e8267dp-1022s more active pieces.} ({Black should try} 18... e5 $1 $17 {Strongly threatening ...f5.} 19. Nb5 f5) 19. b3 $2 {[%emt 0:00:00]} Nd6 $2 {[%emt 0:01:56]} (19... Na3 $19 20. Rc1 Bxc3 21. Rxc3 Rac8) 20. Qd3 {[%emt 0:00:00]} ({White should play} 20. e5 $1 $15) 20... Bxc3 {[%emt 0:01:16]} 21. Qxc3 {[%emt 0:00:00]} Nxe4 $1 {[%emt 0:00:07]} 22. Qe5 {[%emt 0:00:00] [#]} (22. Qe3 $17 Nd6 23. Be4 Qg4+ 24. Bf3) 22... Nd2 $1 $19 {[%emt 0:01:30][%mdl 512] The board is on fire.} 23. Kxd2 {[%emt 0:00:00] aiming for Ke2.} (23. Bg4 Qxg4+) 23... Qxf3 {[%emt 0:00:02]} 24. Qe3 {[%emt 0:00:00]} Qxd5+ {[%emt 0:00:21]} 25. Ke2 {[%emt 0:00:00]} Rac8 {[%emt 0:01:43] ( -> ...Rc2+)} 26. Rbc1 {[%emt 0:00:00] Prevents Rc2+.} Rfd8 {[%emt 0:02:10] And now ...Qb5+ would win.} 27. h4 $2 {[%emt 0:00:00]} (27. Rxc8 Rxc8 28. Rc1) 27... Qh5+ $2 {[%emt 0:02:01]} (27... Qb5+ 28. Ke1 Rxc1+ 29. Qxc1 Qd3) 28. f3 {[%emt 0:00:00]} Rxc1 {[%emt 0:00:40]} ({Don't go for} 28... Qa5 $2 29. a4 $19) 29. Qxc1 {[%emt 0:00:00]} Qa5 {[%emt 0:01:39]} 30. Qc2 {[%emt 0:00:00]} Qb4 {[%emt 0:03:56]} 31. f5 {[%emt 0:00:00]} (31. Qc1 $142) 31... Qb5+ {[%emt 0:00:16] Weighted Error Value: White=0.69/Black=0.54} 0-1